bitfinex-derivatives/quotes_BTCF0:USTF0_20250929
["timestamp","ask_amount","ask_price","bid_price","bid_amount"]
[1759132342804,0.04448,111860.0,111850.0,1.52102384]
[1759132343604,0.04448,111860.0,111850.0,1.52098384]
[1759132345306,0.0223,111860.0,111850.0,1.52098384]
[1759132345508,0.0133,111860.0,111850.0,1.52098384]
[1759132346398,0.1243371,111870.0,111860.0,0.0893628]
[1759132346598,0.1243371,111870.0,111860.0,0.70905584]
[1759132346797,0.03498,111870.0,111860.0,0.70905584]
[1759132347810,0.03798,111870.0,111860.0,0.70905584]
[1759132348307,0.01345,111870.0,111860.0,0.70905584]
[1759132348510,0.01945,111870.0,111860.0,1.52097584]
[1759132349514,0.01945,111870.0,111860.0,0.70905584]
[1759132349811,0.01945,111870.0,111860.0,1.52093584]
[1759132350013,0.01945,111870.0,111860.0,0.70905584]
[1759132350214,0.01945,111870.0,111860.0,1.52093584]
[1759132350424,0.01945,111870.0,111860.0,0.70905584]
[1759132350714,0.04098,111870.0,111860.0,1.52093584]
[1759132351105,0.01945,111870.0,111860.0,1.52093584]
[1759132351717,0.01945,111870.0,111860.0,0.70905584]
[1759132351915,0.01945,111870.0,111860.0,1.52093584]
[1759132352315,0.01945,111870.0,111860.0,1.77990566]
[1759132352816,0.04055677,111870.0,111860.0,1.77990566]
[1759132353004,0.04055677,111870.0,111860.0,0.96802566]
[1759132353407,0.01945,111870.0,111860.0,1.77990566]
[1759132354015,0.01945,111870.0,111860.0,0.96802566]
[1759132354217,0.01945,111870.0,111860.0,1.77986566]
[1759132355718,0.01945,111870.0,111860.0,0.96802566]
[1759132355919,0.01945,111870.0,111860.0,1.77986566]
[1759132356117,0.01945,111870.0,111860.0,0.96802566]
[1759132356317,0.01945,111870.0,111860.0,1.77986566]
[1759132356819,0.01945,111870.0,111860.0,2.14066566]
[1759132358120,0.01945,111870.0,111860.0,1.32882566]
[1759132358316,0.01945,111870.0,111860.0,2.14066566]
[1759132359326,0.01945,111870.0,111860.0,2.14062566]
[1759132359718,0.01945,111870.0,111860.0,2.14066566]
[1759132366129,0.01945,111870.0,111860.0,1.6228028]
[1759132366328,0.01945,111870.0,111860.0,2.14066566]
[1759132367430,0.006,111870.0,111860.0,2.79959709]
[1759132367726,0.02096876,111890.0,111880.0,0.0893468]
[1759132368028,0.02096876,111890.0,111880.0,1.77976966]
[1759132368424,0.03424876,111890.0,111880.0,1.77976966]
[1759132368620,0.03424876,111890.0,111880.0,0.96800966]
[1759132368820,0.05596876,111890.0,111880.0,1.77976966]
[1759132369024,0.05896876,111890.0,111880.0,1.77976966]
[1759132369227,0.14830766,111890.0,111880.0,0.96800966]
[1759132369431,0.05896876,111890.0,111880.0,1.77976966]
[1759132369626,0.06696876,111890.0,111880.0,0.96800966]
[1759132369930,0.06696876,111890.0,111880.0,1.77972966]
[1759132370232,0.06696876,111890.0,111880.0,1.2618668]
[1759132370432,0.06696876,111890.0,111880.0,1.77972966]
[1759132375942,0.1243468,111880.0,111870.0,0.4501505]
[1759132376233,0.64220966,111880.0,111870.0,1.2617905]
[1759132376636,0.64220966,111880.0,111870.0,0.4501505]
[1759132377239,0.64220966,111880.0,111870.0,1.2617905]
[1759132378141,0.64320966,111880.0,111870.0,1.2617905]
[1759132378542,0.64320966,111880.0,111870.0,1.52072193]
[1759132378734,0.64320966,111880.0,111870.0,0.70908193]
[1759132378938,0.64320966,111880.0,111870.0,1.2617905]
[1759132379139,0.64320966,111880.0,111870.0,1.52072193]
[1759132379443,0.64320966,111880.0,111870.0,1.2617905]
[1759132379644,0.64320966,111880.0,111870.0,1.52072193]
[1759132380644,0.64320966,111880.0,111870.0,0.70908193]
[1759132380844,0.64320966,111880.0,111870.0,1.52072193]
[1759132381642,0.38427823,111880.0,111870.0,1.52072193]
[1759132382942,0.38427823,111880.0,111870.0,0.70908193]
[1759132383141,0.38427823,111880.0,111870.0,1.52068193]
[1759132384347,0.38427823,111880.0,111870.0,1.2617505]
[1759132384646,0.38427823,111880.0,111870.0,1.52068193]
[1759132388347,0.001,111880.0,111870.0,1.77961336]
[1759132389648,0.01428,111880.0,111870.0,1.77961336]
[1759132391250,0.001,111880.0,111870.0,2.43854479]
[1759132391455,0.001,111880.0,111870.0,2.24364992]
[1759132391842,0.001,111880.0,111870.0,2.17961336]
[1759132392854,0.001,111880.0,111870.0,2.24364992]
[1759132395056,0.001,111880.0,111870.0,2.26163091]
[1759132396857,0.001,111880.0,111870.0,2.33178442]
[1759132397961,0.08685875,111900.0,111890.0,0.0893388]
[1759132398161,0.01368,111900.0,111890.0,1.52063023]
[1759132398463,0.40451658,111910.0,111900.0,0.0893309]
[1759132398764,0.40451658,111910.0,111900.0,1.41871376]
[1759132399061,0.40451658,111910.0,111900.0,1.15978233]
[1759132399263,0.40451658,111910.0,111900.0,1.52058233]
[1759132399766,0.40451658,111910.0,111900.0,0.70906233]
[1759132399967,0.40451658,111910.0,111900.0,1.52058233]
[1759132400266,0.50283948,111910.0,111900.0,1.52058233]
[1759132400667,0.76177091,111910.0,111900.0,1.52058233]
[1759132401167,0.76177091,111910.0,111900.0,0.70906233]
[1759132401371,0.76977091,111910.0,111900.0,1.52058233]
[1759132401666,0.8421144,111910.0,111900.0,1.52058233]
[1759132402170,0.8421144,111910.0,111900.0,0.70906233]
[1759132402363,0.8421144,111910.0,111900.0,1.52054233]
[1759132402666,0.82046134,111910.0,111900.0,1.52054233]
[1759132402968,0.82046134,111910.0,111900.0,0.70906233]
[1759132402969,0.84210238,111910.0,111900.0,0.70906233]
[1759132403268,0.82046134,111910.0,111900.0,0.70906233]
[1759132403664,0.82046134,111910.0,111900.0,1.52054233]
[1759132404670,0.82046134,111910.0,111900.0,0.70906233]
[1759132404866,0.82046134,111910.0,111900.0,1.52054233]
[1759132405165,0.82046134,111910.0,111900.0,0.4501309]
[1759132405378,0.88204126,111910.0,111900.0,1.2616109]
[1759132405564,0.88204126,111910.0,111900.0,1.52054233]
[1759132405763,0.90367757,111910.0,111900.0,1.52054233]
[1759132407571,0.90367757,111910.0,111900.0,1.15974233]
[1759132407872,0.90367757,111910.0,111900.0,1.52054233]
[1759132411975,0.90367757,111910.0,111900.0,0.3608]
[1759132412177,0.90367757,111910.0,111900.0,1.43113143]
[1759132412475,0.90356985,111910.0,111900.0,1.2615309]
[1759132414873,0.90356985,111910.0,111900.0,1.1722]
[1759132417873,0.90356985,111910.0,111900.0,0.3608]
[1759132418071,0.1250988,111890.0,111880.0,0.79126165]
[1759132418269,0.4048662,111890.0,111880.0,0.3608]
[1759132418472,0.4048662,111890.0,111880.0,1.1722]
[1759132418677,0.38392251,111890.0,111880.0,1.1722]
[1759132419369,0.39292251,111890.0,111880.0,1.1722]
[1759132419978,0.39292251,111890.0,111880.0,0.3608]
[1759132420173,0.39292251,111890.0,111880.0,1.1722]
[1759132420974,0.39292251,111890.0,111880.0,1.2615468]
[1759132427483,0.39292251,111890.0,111880.0,0.9007468]
[1759132427682,0.39292251,111890.0,111880.0,1.2615468]
[1759132431884,0.39292251,111890.0,111880.0,0.4501468]
[1759132432183,0.39292251,111890.0,111880.0,1.2615468]
[1759132436585,0.39292251,111890.0,111880.0,1.1722]
[1759132436787,0.39292251,111890.0,111870.0,0.0893479]
[1759132436788,0.1233868,111880.0,111870.0,0.70897161]
[1759132436988,0.1233868,111880.0,111870.0,1.52037161]
[1759132437389,0.03404,111880.0,111870.0,1.52037161]
[1759132437776,0.1233868,111880.0,111870.0,1.52037161]
[1759132440394,0.03404,111880.0,111870.0,1.52037161]
[1759132442292,0.03404,111880.0,111870.0,1.15957161]
[1759132442494,0.03404,111880.0,111870.0,1.52037161]
[1759132445196,0.03404,111880.0,111870.0,0.70897161]
[1759132445398,0.03404,111880.0,111870.0,1.52037161]
[1759132449995,0.03404,111880.0,111870.0,1.58441204]
[1759132451800,0.03404,111880.0,111870.0,1.52037161]
[1759132452398,0.03404,111880.0,111870.0,1.58441204]
[1759132452593,0.03404,111880.0,111870.0,1.52037161]
[1759132454195,0.03404,111880.0,111870.0,1.58441204]
[1759132454900,0.1233868,111880.0,111870.0,1.52037161]
[1759132456097,0.1233868,111880.0,111870.0,0.70897161]
[1759132456301,0.1233868,111880.0,111870.0,1.52037161]
[1759132458200,0.1233868,111880.0,111870.0,0.70897161]
[1759132458401,0.1233868,111880.0,111870.0,1.52037161]
[1759132461407,0.1233868,111880.0,111870.0,0.70897161]
[1759132461604,0.1233868,111880.0,111870.0,1.52037161]
[1759132462307,0.14384159,111880.0,111870.0,1.52037161]
[1759132462501,0.14384159,111880.0,111870.0,1.58441204]
[1759132463802,0.1233868,111880.0,111870.0,1.6028271]
[1759132465705,0.1233868,111880.0,111870.0,1.60220698]
[1759132467007,0.1233868,111880.0,111870.0,1.34338327]
[1759132467208,0.1233868,111880.0,111870.0,1.60220698]
[1759132468306,0.1233868,111880.0,111870.0,0.72676655]
[1759132468502,0.1233868,111880.0,111870.0,1.53840655]
[1759132469607,0.1233868,111880.0,111870.0,1.52061161]
[1759132470609,0.1233868,111880.0,111870.0,0.70897161]
[1759132470901,0.40391806,111880.0,111870.0,1.2619948]
[1759132472810,0.40391806,111880.0,111870.0,1.52081851]
[1759132473312,0.1233868,111880.0,111870.0,1.52081851]
[1759132474211,0.38231037,111880.0,111870.0,0.70907837]
[1759132474411,0.38231037,111880.0,111870.0,1.52103837]
[1759132476612,0.40350243,111880.0,111870.0,1.52103837]
[1759132478414,0.38231037,111880.0,111870.0,1.52103837]
[1759132480610,0.40314248,111880.0,111870.0,1.52103837]
[1759132481918,0.38231037,111880.0,111870.0,1.52103837]
[1759132482519,0.03404,111880.0,111870.0,1.52103837]
[1759132482719,0.29296357,111880.0,111870.0,1.52103837]
[1759132483511,0.29296357,111880.0,111870.0,1.2621148]
[1759132483716,0.29296357,111880.0,111870.0,1.52103837]
[1759132484714,0.38231037,111880.0,111870.0,1.52103837]
[1759132485524,0.29296357,111880.0,111870.0,1.52103837]
[1759132485717,0.29296357,111880.0,111870.0,0.70907837]
[1759132485913,0.29296357,111880.0,111870.0,1.52091837]
[1759132487923,0.38231037,111880.0,111870.0,1.52091837]
[1759132489316,0.40408215,111880.0,111870.0,0.70907837]
[1759132489523,0.40408215,111880.0,111870.0,1.52075837]
[1759132491423,0.40408215,111880.0,111870.0,1.2618348]
[1759132491623,0.40408215,111880.0,111870.0,1.52075837]
[1759132494122,0.38231037,111880.0,111870.0,1.52075837]
[1759132495428,0.29296357,111880.0,111870.0,1.52075837]
[1759132497122,0.38231037,111880.0,111870.0,1.52075837]
[1759132499234,0.38231037,111880.0,111870.0,1.2618348]
[1759132499428,0.38231037,111880.0,111870.0,1.52075837]
[1759132500339,0.29296357,111880.0,111870.0,1.52075837]
[1759132501226,0.03404,111880.0,111870.0,1.52075837]
[1759132502833,0.1233868,111880.0,111870.0,1.52075837]
[1759132506339,0.03404,111880.0,111870.0,1.52075837]
[1759132511234,0.1233868,111880.0,111870.0,1.52075837]
[1759132515441,0.1233868,111880.0,111870.0,1.58492092]
[1759132515636,0.1233868,111880.0,111870.0,1.52075837]
[1759132516539,0.29366904,111890.0,111880.0,0.0893468]
[1759132516540,0.01378,111890.0,111880.0,0.0893468]
[1759132516745,0.0367,111890.0,111880.0,0.96799394]
[1759132517044,0.05848603,111890.0,111880.0,0.96799394]
[1759132517247,0.05848603,111890.0,111880.0,1.78031394]
[1759132518143,0.03556603,111890.0,111880.0,1.78031394]
[1759132519043,0.04556603,111890.0,111880.0,1.78031394]
[1759132519443,0.04556603,111890.0,111880.0,1.78015394]
[1759132521147,0.04556603,111890.0,111880.0,0.96799394]
[1759132521349,0.02378,111890.0,111880.0,1.78011394]
[1759132522259,0.02378,111890.0,111880.0,0.96799394]
[1759132522460,0.04559,111890.0,111880.0,1.77999394]
[1759132522759,0.04559,111890.0,111880.0,0.96799394]
[1759132522960,0.04559,111890.0,111880.0,1.77991394]
[1759132523260,0.04559,111890.0,111880.0,0.96799394]
[1759132523461,0.04559,111890.0,111880.0,1.77991394]
[1759132523660,0.04559,111890.0,111880.0,2.14071394]
[1759132524056,0.01,111890.0,111880.0,2.14071394]
[1759132524262,0.01,111890.0,111880.0,2.79963751]
[1759132524457,0.01,111890.0,111880.0,2.86380006]
[1759132524961,0.01,111890.0,111880.0,2.79963751]
[1759132526855,0.01,111890.0,111880.0,2.86380006]
[1759132527065,0.02097895,111900.0,111890.0,0.0893377]
[1759132527264,0.02097895,111900.0,111890.0,1.77966484]
[1759132527755,0.02097895,111900.0,111890.0,1.77962484]
[1759132528153,0.02397895,111900.0,111890.0,1.77962484]
[1759132528359,0.003,111900.0,111890.0,1.77962484]
[1759132528561,0.003,111900.0,111890.0,0.96798484]
[1759132528756,0.003,111900.0,111890.0,1.77958484]
[1759132529062,0.08602349,111910.0,111900.0,0.0893297]
[1759132529263,0.08602349,111910.0,111900.0,1.77953684]
[1759132529460,0.08602349,111910.0,111900.0,0.96797684]
[1759132529763,0.10783349,111910.0,111900.0,1.77949684]
[1759132531153,0.08602349,111910.0,111900.0,1.77949684]
[1759132531357,0.07234349,111910.0,111900.0,1.77949684]
[1759132531553,0.001,111910.0,111900.0,1.77949684]
[1759132532263,0.02053746,111920.0,111910.0,0.0893217]
[1759132532464,0.05562746,111920.0,111910.0,1.52056527]
[1759132532865,0.05562746,111920.0,111910.0,0.70904527]
[1759132533056,0.05562746,111920.0,111910.0,1.52056527]
[1759132533259,0.05562746,111920.0,111910.0,1.52052527]
[1759132533459,0.06562746,111920.0,111910.0,0.70904527]
[1759132533659,0.06562746,111920.0,111910.0,1.52052527]
[1759132533861,0.07437964,111920.0,111910.0,1.52052527]
[1759132534162,0.16369334,111920.0,111910.0,0.70904527]
[1759132534469,0.13815588,111920.0,111910.0,1.5202766]
[1759132534968,0.1294037,111920.0,111910.0,1.5202766]
[1759132536258,0.1294037,111920.0,111910.0,0.6195149]
[1759132536462,0.1294037,111920.0,111910.0,1.4309149]
[1759132536868,0.1294037,111920.0,111910.0,0.6195149]
[1759132537070,0.1294037,111920.0,111910.0,0.7088367]
[1759132537371,0.1294037,111920.0,111910.0,1.5202367]
[1759132537670,0.1294037,111920.0,111910.0,1.4309149]
[1759132537871,0.3881186,111920.0,111910.0,0.3608]
[1759132538059,0.7881186,111920.0,111910.0,1.1722]
[1759132539473,0.3881186,111920.0,111910.0,1.1722]
[1759132540668,0.1294037,111920.0,111910.0,1.2615217]
[1759132540867,0.3881186,111920.0,111910.0,1.1722]
[1759132542579,0.1244117,111910.0,111900.0,0.3608]
[1759132542874,0.3831266,111910.0,111900.0,1.17264]
[1759132544271,0.3851266,111910.0,111900.0,1.17264]
[1759132545071,0.3851266,111910.0,111900.0,1.2619705]
[1759132545478,0.3871266,111910.0,111900.0,1.2619705]
[1759132548371,0.1284117,111910.0,111900.0,1.2619705]
[1759132548572,0.3871266,111910.0,111900.0,1.2619705]
[1759132548973,0.1284117,111910.0,111900.0,1.2619705]
[1759132549175,0.3871266,111910.0,111900.0,1.5206854]
[1759132550779,0.3871266,111910.0,111900.0,1.2619705]
[1759132552987,0.3871266,111910.0,111900.0,0.4501305]
[1759132553279,0.3871266,111910.0,111900.0,1.2624105]
[1759132553478,0.3871266,111910.0,111900.0,0.4501305]
[1759132553780,0.3871266,111910.0,111900.0,1.2622905]
[1759132554780,0.3871266,111910.0,111900.0,0.4501305]
[1759132554983,0.3871266,111910.0,111900.0,1.2622105]
[1759132556281,0.40888722,111910.0,111900.0,1.2622105]
[1759132556486,0.3871266,111910.0,111900.0,1.2622105]
[1759132556872,0.40888722,111910.0,111900.0,1.2622105]
[1759132558082,0.15017232,111910.0,111900.0,0.3608]
[1759132558273,0.15017232,111910.0,111880.0,0.51430815]
[1759132558274,0.1249476,111890.0,111880.0,0.51430815]
[1759132558584,0.3836545,111900.0,111890.0,0.0893376]
[1759132558778,0.40541925,111900.0,111890.0,0.4501376]
[1759132559082,0.3836545,111900.0,111890.0,0.4501376]
[1759132559678,0.2943249,111900.0,111890.0,0.4501376]
[1759132560079,0.2943249,111900.0,111890.0,0.4511376]
[1759132561084,0.2943249,111900.0,111890.0,0.4501376]
[1759132561384,0.2943249,111900.0,111890.0,0.4511376]
[1759132563186,0.6423706,111900.0,111890.0,0.3618]
[1759132563381,1.02493128,111900.0,111890.0,0.001]
[1759132563686,0.76621638,111900.0,111890.0,0.001]
[1759132564181,0.76621638,111900.0,111890.0,0.090339]
[1759132564787,0.42630795,111900.0,111890.0,0.090339]
[1759132565190,0.16759305,111900.0,111890.0,0.090339]
[1759132565585,0.42630795,111900.0,111890.0,0.090339]
[1759132568286,0.33697715,111900.0,111890.0,0.090339]
[1759132568593,0.01328,111910.0,111900.0,0.0893309]
[1759132568793,0.01328,111910.0,111900.0,1.7806807]
[1759132569192,0.01328,111910.0,111900.0,1.5219658]
[1759132569891,0.03629,111910.0,111900.0,0.7088458]
[1759132570087,0.03629,111910.0,111900.0,1.5220858]
[1759132570592,0.03829,111910.0,111900.0,1.5220858]
[1759132571296,0.03829,111910.0,111900.0,1.5222458]
[1759132571687,0.04029,111910.0,111900.0,1.2635309]
[1759132571890,0.04029,111910.0,111900.0,1.5222058]
[1759132572794,0.1296129,111910.0,111900.0,0.7088458]
[1759132572990,0.1296129,111910.0,111900.0,1.5222458]
[1759132575698,0.1296129,111910.0,111900.0,0.7088458]
[1759132575998,0.1296129,111910.0,111900.0,1.5220858]
[1759132580093,0.04029,111910.0,111900.0,1.5220858]
[1759132580401,0.01728,111910.0,111900.0,1.7808007]
[1759132580606,0.01728,111910.0,111900.0,1.5220858]
[1759132583002,0.1285929,111910.0,111900.0,0.7088458]
[1759132583193,0.1285929,111910.0,111900.0,1.5215258]
[1759132583389,0.1285929,111910.0,111900.0,1.5214858]
[1759132586290,0.1285929,111910.0,111900.0,0.3608]
[1759132586495,0.0354,111900.0,111890.0,0.4501389]
[1759132586704,0.3834502,111900.0,111890.0,1.2601389]
[1759132586997,0.1247309,111900.0,111890.0,1.5188538]
[1759132588003,0.1247309,111900.0,111890.0,1.5208538]
[1759132593299,0.0354,111900.0,111890.0,1.5208538]
[1759132594605,0.1247309,111900.0,111890.0,1.5208538]
[1759132595194,0.0354,111900.0,111890.0,1.5208538]
[1759132596398,0.2942256,111900.0,111890.0,1.5209645]
[1759132597000,0.3835565,111900.0,111890.0,1.5209645]
[1759132600108,0.1247309,111900.0,111890.0,1.5209645]
[1759132600312,0.3835565,111900.0,111890.0,1.5209645]
[1759132601508,0.3835565,111900.0,111890.0,1.5226445]
[1759132601708,0.3835565,111900.0,111890.0,0.7109645]
[1759132601910,0.3835565,111900.0,111890.0,1.5226445]
[1759132603006,0.2942256,111900.0,111890.0,1.5226445]
[1759132603514,0.0354,111900.0,111890.0,1.5226445]
[1759132603707,0.2942256,111900.0,111890.0,1.5226445]
[1759132604712,0.2942256,111900.0,111890.0,1.8834445]
[1759132605414,0.0354,111900.0,111890.0,1.8834445]
[1759132605614,0.3835565,111900.0,111890.0,1.8834445]
[1759132607508,0.3835565,111900.0,111890.0,1.5226445]
[1759132607720,0.3835565,111900.0,111890.0,1.8834445]
[1759132609417,0.3835565,111900.0,111890.0,1.0717645]
[1759132609618,0.3835565,111900.0,111890.0,0.8129389]
[1759132609809,0.1247309,111900.0,111890.0,1.6245389]
[1759132610117,0.3835565,111900.0,111890.0,1.8833645]
[1759132610617,0.1247309,111900.0,111890.0,1.8833645]
[1759132610813,0.3835565,111900.0,111890.0,1.8833645]
[1759132612219,0.40534365,111900.0,111890.0,1.8833645]
[1759132612824,0.3835565,111900.0,111890.0,1.8833645]
[1759132614624,0.3835565,111900.0,111890.0,0.8129389]
[1759132614818,0.3835565,111900.0,111890.0,1.8833645]
[1759132616014,0.1247309,111900.0,111890.0,1.8833645]
[1759132616218,0.40536538,111900.0,111890.0,1.8833645]
[1759132618023,0.40536538,111900.0,111890.0,1.0717645]
[1759132618226,0.40536538,111900.0,111890.0,1.8833645]
[1759132619528,0.14653978,111900.0,111890.0,1.8833645]
[1759132619728,0.40536538,111900.0,111890.0,1.8833645]
[1759132621225,0.40536538,111900.0,111890.0,1.0717645]
[1759132621425,0.40536538,111900.0,111890.0,0.8129389]
[1759132621728,0.66419098,111900.0,111890.0,0.0913389]
[1759132621930,0.66419098,111900.0,111890.0,0.9029389]
[1759132623136,0.66419098,111900.0,111890.0,1.1617645]
[1759132623736,0.66419098,111900.0,111890.0,0.9029389]
[1759132626637,0.66419098,111900.0,111890.0,1.1617645]
[1759132632840,0.40536538,111900.0,111890.0,1.1617645]
[1759132633040,0.05720888,111900.0,111890.0,1.7813901]
[1759132633241,0.05720888,111900.0,111890.0,2.1813901]
[1759132633242,0.01341,111900.0,111890.0,2.1813901]
[1759132634730,0.01328,111910.0,111900.0,0.0893309]
[1759132634937,0.01328,111910.0,111900.0,0.98581191]
[1759132635241,0.03507566,111910.0,111900.0,0.98581191]
[1759132635835,0.01328,111910.0,111900.0,1.44997446]
[1759132636641,0.01528,111910.0,111900.0,1.44997446]
[1759132636843,0.01928,111910.0,111900.0,1.38581191]
[1759132638343,0.01928,111910.0,111900.0,2.19733191]
[1759132639942,0.01928,111910.0,111900.0,1.38581191]
[1759132640143,0.01928,111910.0,111900.0,2.19733191]
[1759132641142,0.01928,111910.0,111900.0,1.67968071]
[1759132641344,0.01928,111910.0,111900.0,2.19733191]
[1759132644743,0.01928,111910.0,111900.0,1.38581191]
[1759132644943,0.01928,111910.0,111900.0,2.19729191]
[1759132650647,0.01928,111910.0,111900.0,1.38581191]
[1759132650846,0.01928,111910.0,111900.0,2.19725191]
[1759132652654,0.01928,111910.0,111900.0,2.1792221]
[1759132653150,0.1086029,111910.0,111900.0,2.1791821]
[1759132653352,0.13064591,111910.0,111900.0,2.1792221]
[1759132653652,0.01928,111910.0,111900.0,2.1792221]
[1759132654545,0.1086029,111910.0,111900.0,2.1792221]
[1759132654848,0.3674285,111910.0,111900.0,2.1792221]
[1759132655156,0.3674285,111910.0,111900.0,1.3678221]
[1759132655348,0.3674285,111910.0,111900.0,2.1792221]
[1759132656357,0.1086029,111910.0,111900.0,1.92034108]
[1759132657457,0.1086029,111910.0,111900.0,1.10894108]
[1759132657754,0.1086029,111910.0,111900.0,1.92034108]
[1759132657956,0.1297529,111910.0,111900.0,0.8501709]
[1759132658162,0.38852308,111910.0,111900.0,1.2615709]
[1759132658455,0.38852308,111910.0,111900.0,1.52034108]
[1759132659256,0.1297529,111910.0,111900.0,1.2615709]
[1759132659644,0.38852308,111910.0,111900.0,1.2615709]
[1759132660357,0.78852308,111910.0,111900.0,0.36084]
[1759132660652,0.4317345,111910.0,111900.0,1.1722]
[1759132661760,0.4317345,111910.0,111900.0,1.2615309]
[1759132663956,0.43116546,111910.0,111900.0,1.2615309]
[1759132665353,1.08993564,111910.0,111900.0,4e-05]
[1759132665554,0.83116546,111910.0,111900.0,4e-05]
[1759132666861,0.83166249,111910.0,111900.0,4e-05]
[1759132667159,0.83166249,111910.0,111900.0,0.0893709]
[1759132670450,0.83116764,111910.0,111900.0,0.0893709]
[1759132673262,0.97956764,111910.0,111900.0,0.0893709]
[1759132673449,0.83116764,111910.0,111900.0,0.0893709]
[1759132675864,0.74184474,111910.0,111900.0,0.0893709]
[1759132677063,0.83116764,111910.0,111900.0,0.0893709]
[1759132682864,0.06248044,111910.0,111900.0,0.34814108]
[1759132683266,0.06248044,111910.0,111900.0,0.70894108]
[1759132683567,0.06248044,111910.0,111900.0,1.10894108]
[1759132683764,0.04043,111910.0,111900.0,1.10894108]
[1759132683967,0.006,111910.0,111900.0,1.36771126]
[1759132684172,0.006,111910.0,111900.0,1.10894108]
[1759132685062,0.01976,111910.0,111900.0,1.10894108]
[1759132685664,0.01976,111910.0,111900.0,1.92026108]
[1759132687273,0.01976,111910.0,111900.0,1.10894108]
[1759132687572,0.01976,111910.0,111900.0,1.92026108]
[1759132688169,0.006,111910.0,111900.0,2.17903126]
[1759132689369,0.006,111910.0,111900.0,1.6614909]
[1759132689570,0.006,111910.0,111900.0,2.17903126]
[1759132689974,0.08424022,111930.0,111920.0,0.0893149]
[1759132690170,0.10593296,111930.0,111920.0,1.52016508]
[1759132691170,0.10932631,111930.0,111920.0,1.52016508]
[1759132691975,0.09332631,111930.0,111920.0,1.52016508]
[1759132692273,0.09932631,111930.0,111920.0,1.52016508]
[1759132693372,0.09024022,111930.0,111920.0,1.52016508]
[1759132695471,0.11285022,111930.0,111920.0,0.70888508]
[1759132695771,0.11285022,111930.0,111920.0,1.52008508]
[1759132695971,0.4609273,111930.0,111920.0,0.4501149]
[1759132696173,0.4609273,111930.0,111920.0,1.2613149]
[1759132696574,0.4609273,111930.0,111920.0,1.52008508]
[1759132696782,0.4609273,111930.0,111920.0,1.2613149]
[1759132697674,0.4609273,111930.0,111920.0,1.52008508]
[1759132699276,0.20215712,111930.0,111920.0,1.52008508]
[1759132700673,0.20215712,111930.0,111920.0,1.52004508]
[1759132701486,0.20215712,111930.0,111920.0,1.2612749]
[1759132701686,0.20215712,111930.0,111920.0,1.52004508]
[1759132702895,0.20215712,111930.0,111920.0,0.70888508]
[1759132703096,0.20215712,111930.0,111920.0,1.52000508]
[1759132704497,0.20215712,111930.0,111920.0,0.70888508]
[1759132704697,0.20215712,111930.0,111920.0,1.52000508]
[1759132705498,0.20215712,111930.0,111920.0,1.51996508]
[1759132706598,0.20215712,111930.0,111920.0,0.70888508]
[1759132706796,0.20215712,111930.0,111920.0,1.51996508]
[1759132707995,0.20215712,111930.0,111920.0,0.70888508]
[1759132708200,0.4609273,111930.0,111920.0,0.70888508]
[1759132708499,0.4609273,111930.0,111920.0,1.51996508]
[1759132712103,0.48253067,111930.0,111920.0,1.51996508]
[1759132715097,0.48253067,111930.0,111920.0,1.17184]
[1759132715298,0.48253067,111930.0,111920.0,1.2611549]
[1759132715699,0.22376049,111930.0,111920.0,1.2611549]
[1759132715900,0.48253067,111930.0,111920.0,1.2611549]
[1759132716906,0.13445359,111930.0,111920.0,1.2611549]
[1759132717201,0.13445359,111930.0,111920.0,1.51992508]
[1759132717500,0.22376049,111930.0,111920.0,0.70888508]
[1759132717900,0.22376049,111930.0,111920.0,1.51992508]
[1759132718407,0.48245744,111930.0,111920.0,1.51985185]
[1759132720403,0.39315054,111930.0,111920.0,1.51985185]
[1759132724910,0.39315054,111930.0,111920.0,1.2611549]
[1759132725113,0.39315054,111930.0,111920.0,1.51985185]
[1759132727108,0.13445359,111930.0,111920.0,1.7785488]
[1759132727410,0.39315054,111930.0,111920.0,1.7785488]
[1759132727612,0.39315054,111930.0,111920.0,1.51985185]
[1759132728210,0.39315054,111930.0,111920.0,1.2611549]
[1759132728410,0.39315054,111930.0,111920.0,1.7785488]
[1759132730010,0.39315054,111930.0,111920.0,1.4177488]
[1759132730215,0.39315054,111930.0,111920.0,1.7785488]
[1759132733208,0.39315054,111930.0,111920.0,1.51985185]
[1759132734520,0.13445359,111930.0,111920.0,1.51985185]
[1759132734720,0.32232032,111930.0,111920.0,1.51985185]
[1759132737312,0.39545803,111930.0,111920.0,1.51985185]
[1759132737719,0.39545803,111930.0,111920.0,0.70881185]
[1759132737720,0.48476493,111930.0,111920.0,0.70881185]
[1759132737915,0.74346188,111930.0,111920.0,0.3608]
[1759132738116,0.74346188,111930.0,111900.0,0.4501645]
[1759132738117,0.1234229,111910.0,111900.0,0.4501645]
[1759132738323,0.6408168,111910.0,111900.0,1.2610845]
[1759132738515,0.38211985,111910.0,111900.0,1.2610845]
[1759132738716,0.40380017,111910.0,111900.0,1.2610845]
[1759132739222,0.38211985,111910.0,111900.0,1.2610845]
[1759132739617,0.29279695,111910.0,111900.0,1.51978145]
[1759132742520,0.29279695,111910.0,111900.0,1.7784784]
[1759132744627,0.29279695,111910.0,111900.0,1.7785184]
[1759132747534,0.0341,111910.0,111900.0,1.7785184]
[1759132747724,0.29279695,111910.0,111900.0,1.7785184]
[1759132748326,0.0341,111910.0,111900.0,1.7785184]
[1759132749538,0.0341,111910.0,111900.0,1.4177184]
[1759132749835,0.0341,111910.0,111900.0,1.7785184]
[1759132752634,0.1234229,111910.0,111900.0,0.4501645]
[1759132752836,0.38211985,111910.0,111900.0,0.4501645]
[1759132753040,0.38211985,111910.0,111900.0,1.51982145]
[1759132753534,0.38211985,111910.0,111900.0,0.70886145]
[1759132753834,0.38211985,111910.0,111900.0,1.51982145]
[1759132755633,0.38211985,111910.0,111900.0,0.36084]
[1759132755831,1.06250117,111910.0,111900.0,0.36084]
[1759132756030,0.80380422,111910.0,111900.0,1.1718]
[1759132756837,0.80380422,111910.0,111900.0,0.36084]
[1759132757037,0.80380422,111910.0,111900.0,1.1718]
[1759132759630,0.80380422,111910.0,111900.0,0.36084]
[1759132759834,1.06250117,111910.0,111900.0,4e-05]
[1759132760039,0.54510727,111910.0,111900.0,0.0893707]
[1759132760241,0.80380422,111910.0,111900.0,0.0893707]
[1759132764446,0.54510727,111910.0,111900.0,0.0893707]
[1759132764647,0.80380422,111910.0,111900.0,0.0893707]
[1759132765148,0.95220422,111910.0,111900.0,0.0893707]
[1759132765652,0.80380422,111910.0,111900.0,0.0893707]
[1759132768757,0.54510727,111910.0,111900.0,0.0893707]
[1759132768956,0.80380422,111910.0,111900.0,0.0893707]
[1759132771658,0.54510727,111910.0,111900.0,0.0893707]
[1759132771859,0.80380422,111910.0,111900.0,0.0893707]
[1759132775762,0.95220422,111910.0,111900.0,0.0893707]
[1759132776062,0.78211985,111910.0,111900.0,0.0893707]